bitfinex-derivatives/quotes_ETHF0:USTF0_20260102
["timestamp","ask_amount","ask_price","bid_price","bid_amount"]
[1767338231941,0.26566075,3029.8,3028.9,10.5145416]
[1767338232341,7.5e-07,3029.8,3029.0,0.16528]
[1767338232541,7.5e-07,3029.8,3029.1,4.64]
[1767338232741,7.5e-07,3029.8,3029.1,8.8507262]
[1767338235342,0.00308898,3030.5,3029.1,8.8507262]
[1767338236138,0.14295439,3030.5,3029.1,8.8507262]
[1767338240648,0.14295439,3030.5,3029.2,4.663]
[1767338242949,0.14295439,3030.5,3029.3,4.663]
[1767338247966,0.14295439,3030.5,3029.0,0.16528]
[1767338248165,0.14295439,3030.5,3029.1,4.662]
[1767338248465,0.14295439,3030.5,3029.1,8.96052425]
[1767338251364,0.14295439,3030.5,3029.1,4.29852425]
[1767338251565,0.14295439,3030.5,3029.2,4.662]
[1767338251968,0.14295439,3030.5,3029.0,0.16528]
[1767338252167,0.14295439,3030.5,3029.1,4.662]
[1767338252356,0.14295439,3030.5,3029.1,9.01991839]
[1767338257467,0.14295439,3030.5,3029.1,4.35791839]
[1767338257672,0.14295439,3030.5,3029.2,4.662]
[1767338259574,0.14295439,3030.5,3028.6,0.00346407]
[1767338259874,0.14295439,3030.5,3028.7,4.661]
[1767338265873,0.14295439,3030.5,3028.6,0.00346407]
[1767338270880,0.30815439,3030.5,3028.6,0.00346407]
[1767338271377,0.30140783,3030.4,3028.6,0.00346407]
[1767338271582,0.13620783,3030.3,3028.6,0.00346407]
[1767338275583,0.13620783,3030.2,3028.6,0.00346407]
[1767338279882,0.14631343,3029.9,3027.2,0.16537]
[1767338280179,0.14631343,3028.8,3027.3,4.24568488]
[1767338280879,0.14631343,3028.8,3027.3,4.24918894]
[1767338283986,0.14631343,3028.8,3027.3,0.00350406]
[1767338291087,0.14631343,3028.6,3027.3,0.00350406]
[1767338308295,0.1449834,3028.3,3025.8,0.16547]
[1767338308598,0.00495205,3027.4,3025.8,4.79296873]
[1767338309183,0.1532042,3027.4,3025.8,4.79674646]
[1767338310198,0.0082208,3027.4,3025.9,0.16546]
[1767338310492,0.0082208,3027.4,3026.0,4.29388617]
[1767338311895,0.0082208,3027.4,3026.0,4.45934617]
[1767338312296,0.0082208,3027.4,3026.0,0.16546]
[1767338312489,0.0082208,3027.4,3026.1,4.26364372]
[1767338312800,0.0082208,3027.4,3026.2,4.661]
[1767338313094,0.0082208,3027.4,3026.3,4.26364372]
[1767338314901,0.0082208,3027.4,3026.3,3.86364372]
[1767338315199,0.0082208,3027.4,3026.2,4.661]
[1767338319204,0.0082208,3027.4,3026.3,4.32303108]
[1767338320700,0.3303,3027.3,3026.3,4.32303108]
[1767338323204,0.3303,3027.3,3026.4,4.682]
[1767338323506,0.3303,3027.3,3026.5,4.35242876]
[1767338323814,0.1449834,3027.2,3026.4,4.682]
[1767338339730,0.3303,3027.1,3026.4,4.682]
[1767338346531,0.32333187,3027.1,3026.5,4.32171531]
[1767338349831,1.87e-06,3027.1,3026.5,4.32171531]
[1767338350333,1.87e-06,3027.1,3026.5,4.48714531]
[1767338350933,0.0082208,3027.4,3026.5,4.48714531]
[1767338351534,0.0082208,3027.4,3026.6,0.16542]
[1767338351735,0.0082208,3027.4,3026.5,4.32171531]
[1767338351736,8e-07,3027.4,3026.9,0.16541]
[1767338351934,8e-07,3027.4,3027.0,4.716]
[1767338352135,8e-07,3027.4,3027.0,9.07693506]
[1767338353137,2.85e-06,3027.5,3027.0,9.07693506]
[1767338354231,0.00321571,3027.5,3027.0,9.07693506]
[1767338354432,0.14422948,3028.4,3027.0,9.07693506]
[1767338354433,0.14422948,3028.4,3027.0,9.24233506]
[1767338355137,0.14422948,3028.4,3027.1,0.1654]
[1767338355338,2.05e-06,3028.1,3027.4,0.16538]
[1767338355639,2.05e-06,3028.1,3027.5,9.10318878]
[1767338359140,2.05e-06,3028.1,3027.5,4.37918878]
[1767338359340,2.05e-06,3028.1,3027.6,4.736]
[1767338359745,2.05e-06,3028.1,3027.7,4.34899441]
[1767338361244,0.00326874,3028.4,3027.7,4.34899441]
[1767338361443,0.00326874,3028.4,3027.7,4.51435441]
[1767338362247,0.00822079,3028.4,3027.7,4.51435441]
[1767338370655,0.00822079,3028.4,3027.8,4.783]
[1767338371050,0.00822079,3028.4,3027.9,4.29011042]
[1767338374657,7.9e-07,3028.4,3027.9,4.29011042]
[1767338375659,8.41e-06,3028.4,3027.9,4.29011042]
[1767338376759,4.6e-07,3028.5,3027.9,4.45546042]
[1767338377759,9.91e-06,3028.5,3027.9,4.45546042]
[1767338378155,9.91e-06,3028.5,3027.9,4.29011042]
[1767338378357,6.393,3030.8,3027.9,4.29011042]
[1767338378860,0.00495205,3029.5,3028.8,0.00495205]
[1767338379059,0.00495205,3029.5,3028.9,4.817]
[1767338379360,0.00837828,3029.5,3028.9,4.82060064]
[1767338380360,0.14735432,3029.5,3028.9,4.82060064]
[1767338381964,6.13897604,3029.4,3028.9,5.09308202]
[1767338382563,6.13897604,3029.4,3028.9,4.82060064]
[1767338382755,0.13897604,3029.4,3028.9,4.82060064]
[1767338383657,0.00837828,3029.5,3028.9,4.82060064]
[1767338399780,0.15287429,3029.5,3028.9,4.82060064]
[1767338402373,0.00837828,3029.5,3028.9,4.82060064]
[1767338421398,0.00837828,3029.5,3028.9,0.00360064]
[1767338421600,0.15287429,3029.5,3029.0,4.81]
[1767338429700,0.00837828,3029.5,3029.0,4.81]
[1767338430902,0.15185887,3030.2,3029.0,4.81]
[1767338431308,0.15185887,3030.2,3029.1,4.1947523]
[1767338432007,0.00330136,3030.0,3029.1,4.1947523]
[1767338433507,0.0042125,3030.2,3029.1,4.1947523]
[1767338434210,0.15607137,3030.2,3028.9,0.00360064]
[1767338434510,0.15607137,3030.2,3029.2,4.812]
[1767338443820,0.0042125,3030.2,3029.2,4.812]
[1767338444015,0.15185887,3030.6,3029.2,4.812]
[1767338445024,0.1551402,3030.6,3029.2,4.812]
[1767338451828,0.1551402,3030.6,3029.3,4.37370605]
[1767338452022,0.1551402,3030.6,3029.2,4.812]
[1767338452336,0.1551402,3030.6,3028.9,0.05271632]
[1767338452530,0.1551402,3030.6,3029.0,4.807]
[1767338452826,0.1551402,3030.6,3029.0,9.18070605]
[1767338454335,0.1551402,3030.6,3029.0,4.37370605]
[1767338454533,0.1551402,3030.6,3029.1,4.807]
[1767338458235,0.1551402,3030.6,3028.9,0.00360064]
[1767338458436,0.1551402,3030.6,3029.0,4.806]
[1767338466839,0.1551402,3030.6,3028.9,0.00360064]
[1767338466840,0.3203502,3030.6,3028.9,0.00360064]
[1767338467041,0.1466598,3030.5,3028.9,0.00360064]
[1767338467640,0.3118698,3030.5,3028.9,0.00360064]
[1767338467840,0.1466598,3030.3,3028.9,0.00360064]
[1767338473244,0.3118798,3030.3,3028.9,0.00360064]
[1767338474346,0.3118898,3030.2,3028.9,0.00360064]
[1767338475146,0.1466598,3030.1,3028.9,0.00360064]
[1767338475648,0.1466598,3030.0,3028.9,0.00360064]
[1767338480340,0.16525,3029.9,3028.8,0.00495205]
[1767338480540,0.1466598,3029.8,3028.8,0.00495205]
[1767338481248,0.1466598,3029.8,3028.8,0.00756342]
[1767338484552,6.5396598,3029.8,3028.8,0.00756342]
[1767338484752,0.1466598,3029.7,3028.8,0.00756342]
[1767338491352,0.16527,3029.5,3027.0,11.02710724]
[1767338491558,0.13774937,3029.3,3027.1,0.04427389]
[1767338491756,0.13774937,3029.1,3027.1,0.04427389]
[1767338492555,0.00495205,3028.4,3027.8,0.00495205]
[1767338492757,0.00854672,3028.4,3027.8,0.00495205]
[1767338493054,0.13774937,3029.1,3027.8,0.00495205]
[1767338494257,0.14034874,3029.1,3027.8,0.00495205]
[1767338498358,0.00259937,3029.1,3027.8,0.04000863]
[1767338502762,0.00259937,3029.1,3027.8,0.00495205]
[1767338503060,0.14034874,3029.1,3027.8,0.00495205]
[1767338520277,0.14034874,3029.1,3027.1,0.00294555]
[1767338521270,0.14034874,3029.1,3027.8,0.00495205]
[1767338521573,0.12639238,3028.3,3027.8,0.00495205]
[1767338522671,0.12639238,3028.3,3027.1,0.00294555]
[1767338523673,0.12639238,3028.3,3027.4,0.00495205]
[1767338525076,0.00495205,3028.4,3027.4,0.00495205]
[1767338527173,0.13134443,3028.4,3027.4,0.00495205]
[1767338535593,0.00495205,3028.4,3027.4,0.00495205]
[1767338545907,0.14304007,3028.4,3027.4,0.00495205]
[1767338583735,0.01,3027.8,3027.4,0.00495205]
[1767338584731,0.14206936,3028.1,3027.4,0.00495205]
[1767338597840,0.14206936,3028.1,3027.1,0.00294555]
[1767338599241,0.14206936,3028.1,3027.3,0.00495205]
[1767338599835,0.14206936,3028.1,3026.8,4.797]
[1767338600637,0.14206936,3028.1,3026.8,4.65002209]
[1767338600842,0.14206936,3028.1,3027.1,0.00495205]
[1767338605645,6.39795205,3028.4,3027.1,0.00495205]
[1767338605844,0.13801308,3028.3,3026.8,0.00244833]
[1767338606848,0.13801308,3028.3,3027.2,0.00495205]
[1767338609356,0.30334308,3028.3,3027.2,0.00495205]
[1767338610454,0.13926185,3028.2,3027.2,0.00495205]
[1767338612756,0.30460185,3028.2,3027.2,0.00495205]
[1767338613651,0.13926185,3028.1,3027.2,0.00495205]
[1767338613856,0.13926185,3028.1,3026.8,0.00244833]
[1767338614056,0.13926185,3028.0,3026.8,0.00244833]
[1767338614456,0.30461185,3028.0,3026.0,0.13107227]
[1767338614657,0.13926185,3027.9,3026.0,0.13107227]
[1767338614957,0.13926185,3027.9,3026.6,0.00330136]
[1767338615458,0.13926185,3027.9,3026.6,0.006693]
[1767338620862,0.30461185,3028.0,3026.6,0.006693]
[1767338622457,0.13926185,3027.9,3026.6,0.006693]
[1767338629062,0.13926185,3027.9,3026.6,0.13776527]
[1767338629264,6.53226185,3028.3,3026.6,0.13776527]
[1767338630767,0.13926185,3028.2,3026.6,0.13776527]
[1767338641775,6.393,3028.3,3026.6,0.13776527]
[1767338642779,0.00495205,3028.4,3026.6,0.13776527]
[1767338651178,0.00495205,3028.4,3026.8,0.13848784]
[1767338656887,0.00495205,3028.4,3026.8,4.91948784]
[1767338657187,0.00495205,3028.4,3026.9,0.13848784]
[1767338665897,0.00495205,3028.4,3026.9,4.91648784]
[1767338666298,0.00495205,3028.4,3027.0,0.13258165]
[1767338726245,0.14423521,3028.4,3026.6,0.14479745]
[1767338726450,0.13928316,3028.2,3026.6,0.14479745]
[1767338731551,0.13928316,3028.1,3026.6,0.14479745]
[1767338739158,0.13928316,3028.0,3026.6,0.14479745]
[1767338741969,0.30463316,3028.0,3026.6,0.14479745]
[1767338745770,0.30463316,3028.0,3026.6,0.006693]
[1767338745971,0.30463316,3027.9,3026.6,0.006693]
[1767338746178,0.13928316,3027.8,3026.6,0.006693]
[1767338755492,0.16537,3027.7,3026.6,0.006693]
[1767338757189,0.2911897,3027.7,3026.6,0.006693]
[1767338761295,0.16538,3027.5,3026.6,0.006693]
[1767338761491,0.2911997,3027.5,3026.6,0.006693]
[1767338761693,0.1258197,3027.4,3025.8,0.51334182]
[1767338762582,0.1258197,3027.4,3025.8,0.51716542]
[1767338763895,0.1258197,3027.3,3025.8,0.51716542]
[1767338764193,0.00495205,3026.9,3025.8,0.51716542]
[1767338764398,0.00900144,3026.9,3025.8,0.51716542]
[1767338766400,0.00900144,3026.9,3025.8,0.0038236]
[1767338768696,0.00900144,3026.9,3025.8,0.13465814]
[1767338775201,0.3303,3026.8,3025.8,0.13465814]
[1767338775698,0.00488342,3026.9,3025.8,0.13465814]
[1767338776096,0.00488342,3026.9,3025.8,0.0038236]
[1767338776801,0.00488342,3026.9,3026.0,0.00411802]
[1767338780004,0.3303,3026.8,3026.0,0.00411802]
[1767338780205,0.32931523,3026.8,3026.0,0.00411802]
[1767338785803,0.31767017,3026.8,3026.0,6.00411802]
[1767338786000,0.02932308,3026.4,3026.0,6.01762799]
[1767338786201,0.31767017,3026.8,3026.0,6.01762799]
[1767338787809,0.31767017,3026.8,3026.0,6.00411802]
[1767338791708,0.31767017,3026.8,3026.0,0.00411802]
[1767338798912,0.00488342,3026.9,3026.0,0.00411802]
[1767338802215,0.14435988,3026.9,3026.0,0.00411802]
[1767338802711,0.13947646,3026.7,3026.0,0.00411802]
[1767338802907,0.13947646,3026.7,3026.0,4.76711802]
[1767338803107,0.13947646,3026.7,3026.0,4.62015445]
[1767338803312,0.13947646,3026.7,3025.8,0.0038236]
[1767338803907,0.13947646,3026.7,3025.2,0.39663798]
[1767338804113,0.13947646,3026.7,3024.4,0.14145925]
[1767338804310,0.00495205,3025.9,3024.4,0.14145925]
[1767338804505,0.00495205,3025.9,3024.7,4.37721433]
[1767338804712,0.00495205,3025.9,3024.5,0.22052432]
[1767338804917,0.00495205,3025.9,3024.7,0.00280901]
[1767338805110,0.00495205,3025.9,3024.8,4.764]
[1767338806515,0.14442851,3025.9,3024.8,4.764]
[1767338808015,0.14442851,3025.9,3024.7,0.00280901]
[1767338808215,0.14442851,3025.9,3024.8,4.764]
[1767338808618,0.14442851,3025.9,3024.9,4.764]
[1767338809016,0.14442851,3025.9,3024.7,0.00280901]
[1767338809320,0.14442851,3025.9,3024.8,4.764]
[1767338810215,0.14442851,3025.9,3024.0,0.05753231]
[1767338810405,0.14442851,3025.9,3023.7,1.996]
[1767338810611,0.14442851,3025.9,3023.8,3.685]
[1767338811310,0.14442851,3025.9,3023.8,3.68746759]
[1767338812212,0.14442851,3025.9,3023.8,0.00246759]
[1767338812420,0.14442851,3025.9,3023.9,4.764]
[1767338813714,0.14442851,3025.9,3023.9,4.90545925]
[1767338814222,0.14442851,3025.9,3024.0,0.14145925]
[1767338814623,0.14442851,3025.9,3024.1,0.14145925]
[1767338818721,0.14442851,3025.9,3024.2,4.765]
[1767338819220,0.14442851,3025.9,3024.3,4.765]
[1767338820327,0.14442851,3025.9,3023.8,0.00246759]
[1767338820527,0.14442851,3025.9,3023.9,2.067]
[1767338821728,0.14442851,3025.9,3023.8,0.00246759]
[1767338821928,0.14442851,3025.9,3023.9,4.002]
[1767338822528,0.14442851,3025.9,3023.8,0.00246759]
[1767338822728,0.14442851,3025.9,3023.9,2.228]
[1767338823327,0.30988851,3025.9,3023.9,2.228]
[1767338823528,0.14445859,3025.8,3023.9,2.228]
[1767338824228,0.14445859,3025.8,3023.8,0.00246759]
[1767338825032,0.14445859,3025.6,3023.8,0.00246759]
[1767338831339,0.14445859,3025.6,3023.8,4.9021056]
[1767338835236,0.14445859,3025.6,3023.9,4.34887894]
[1767338835424,0.14445859,3025.6,3023.9,4.21224093]
[1767338835630,0.14445859,3025.6,3024.0,4.762]
[1767338836733,0.14445859,3025.6,3024.0,4.89863801]
[1767338836940,0.14445859,3025.6,3024.1,4.37554919]
[1767338838241,0.14445859,3025.6,3024.1,0.13663801]
[1767338838838,0.14445859,3025.6,3024.2,4.762]
[1767338839036,0.14445859,3025.6,3023.8,0.00246759]
[1767338839240,0.14445859,3025.6,3023.9,2.775]
[1767338839440,0.14445859,3025.6,3023.9,7.03045631]
[1767338839740,0.14445859,3025.6,3023.9,7.16709432]
[1767338839938,0.14445859,3025.6,3024.0,0.13663801]
[1767338840344,0.14445859,3025.6,3024.1,4.35718908]
[1767338840643,0.14445859,3025.6,3024.1,0.13663801]
[1767338842242,0.3178,3025.7,3024.3,0.13663801]
[1767338844152,0.00495205,3025.9,3024.3,0.13663801]
[1767338845846,0.00495205,3025.9,3024.4,4.36175962]
[1767338846245,0.00495205,3025.9,3024.4,0.14101257]
[1767338847355,0.3178,3025.8,3024.4,0.14101257]
[1767338851653,0.3178,3025.8,3024.5,4.759]
[1767338851654,0.45351301,3025.8,3024.5,4.759]
[1767338852654,0.13571301,3025.7,3024.5,4.759]
[1767338871569,0.13571301,3025.7,3024.2,0.14101257]
[1767338871867,0.13571301,3025.7,3024.3,9.05030832]
[1767338872467,0.3179,3025.6,3024.3,9.05030832]
[1767338877268,0.3179,3025.6,3024.3,4.755]
[1767338881276,0.3179,3025.6,3024.2,0.14101257]
[1767338881572,0.3179,3025.6,3024.3,4.563]
[1767338883774,0.3179,3025.6,3024.4,0.1283534]
[1767338887464,0.3179,3025.6,3024.5,4.42612069]
[1767338887672,0.3179,3025.6,3024.6,0.1283534]
[1767338888967,0.18062744,3025.6,3024.7,4.29060318]
[1767338894380,0.18062744,3025.6,3024.8,4.765]
[1767338895381,0.18062744,3025.6,3024.9,4.26488798]
[1767338895579,0.18062744,3025.6,3025.0,4.768]
[1767338895968,0.18062744,3025.6,3024.7,4.23048276]
[1767338896175,0.18062744,3025.6,3024.8,4.769]
[1767338897282,0.18062744,3025.6,3024.6,1.44467955]
[1767338897478,0.18062744,3025.6,3024.7,4.773]
[1767338897678,0.18062744,3025.6,3024.7,8.98275707]
[1767338898486,0.12815852,3025.8,3024.7,8.98275707]
[1767338901287,0.12815852,3025.8,3024.7,4.20975707]
[1767338901484,0.12815852,3025.8,3024.8,4.787]
[1767338902988,0.1806,3025.7,3024.8,4.787]
[1767338906901,0.3164534,3025.7,3024.6,1.44467955]
[1767338907103,0.1358534,3025.6,3024.7,4.793]
[1767338908907,0.1358534,3025.6,3023.8,0.16804759]
[1767338909108,0.1358534,3025.6,3024.2,4.796]
[1767338909300,0.1358534,3025.6,3024.3,4.796]
[1767338910000,0.1358534,3025.6,3023.8,0.16804759]
[1767338910206,0.1358534,3025.6,3024.2,4.796]
[1767338924313,0.1358534,3025.6,3023.8,0.00246759]
[1767338925512,0.3013334,3025.6,3023.8,0.00246759]
[1767338926017,0.1358534,3025.5,3023.8,0.00246759]
[1767338931114,0.1806,3025.4,3023.8,0.00246759]
[1767338931318,0.1358534,3025.3,3023.8,0.00246759]
[1767338935030,0.3013534,3025.3,3023.8,0.00246759]
[1767338935428,0.1358534,3025.2,3023.8,0.00246759]
[1767338937836,0.1358534,3025.2,3022.7,0.16564]
[1767338938136,0.14592535,3024.3,3022.7,0.16564]
[1767338938531,0.14592535,3024.3,3022.7,0.43502818]
[1767338938836,0.14981306,3024.3,3022.7,0.43825584]
[1767338939232,0.14981306,3024.3,3022.7,0.27261584]
[1767338941135,0.14981306,3024.3,3022.8,4.25257799]
[1767338950943,0.00884811,3024.3,3022.9,0.01350816]
[1767338951333,0.00884811,3024.3,3023.0,4.36824415]
[1767338951637,0.14981306,3024.3,3022.9,4.20360695]
[1767338951838,0.00884811,3024.3,3022.9,4.2172423]
[1767338952033,0.00884811,3024.3,3022.9,0.01363535]
[1767338952234,0.00884811,3024.3,3023.0,4.20360695]
[1767338952838,0.14981306,3024.3,3023.0,4.20360695]
[1767338954955,0.14981306,3024.3,3023.1,4.786]
[1767338956352,0.00884811,3024.3,3023.1,4.786]
[1767338958847,0.1808,3024.2,3023.2,4.787]
[1767338959444,0.32176495,3024.2,3023.2,4.787]
[1767338961140,0.14096495,3024.1,3022.8,0.16563]
[1767338961341,0.14096495,3024.1,3022.9,4.789]
[1767338961633,0.14096495,3024.1,3022.9,9.15373232]
[1767338963242,0.14096495,3024.1,3023.0,4.793]
[1767338963442,0.14096495,3024.1,3022.8,0.16563]
[1767338963646,0.14096495,3024.1,3022.9,4.794]
[1767338964052,0.14096495,3024.1,3022.7,0.00322766]
[1767338964347,0.14096495,3024.1,3021.8,1.005]
[1767338964652,0.0049604,3023.3,3022.0,4.27350897]
[1767338964845,0.0049604,3023.3,3021.9,4.27350897]
[1767338965051,0.0049604,3023.3,3021.9,0.01726361]
[1767338965254,0.0049604,3023.3,3022.1,4.27350897]
[1767338965448,0.0049604,3023.3,3021.9,4.2934472]
[1767338965648,0.0049604,3023.3,3021.9,0.01993823]
[1767338965856,0.0049604,3023.3,3022.0,4.24144222]
[1767338966654,0.0049604,3023.3,3022.0,4.51151969]
[1767338967556,0.14096495,3023.6,3022.0,4.51151969]
[1767338968454,0.0049604,3023.1,3022.5,0.0049604]
[1767338968654,0.14096495,3023.6,3022.6,4.794]
[1767338969654,0.0049604,3023.4,3022.6,4.794]
[1767338973556,0.1489528,3023.4,3022.6,4.794]
[1767338973855,0.1489528,3023.4,3022.5,0.0049604]
[1767338975160,0.1439924,3024.1,3022.6,4.23670714]
[1767338975449,0.31672169,3023.3,3022.6,4.23670714]
[1767338975655,0.1439924,3024.1,3022.6,4.23670714]
[1767338976156,0.0049604,3023.7,3022.6,4.23670714]
[1767338979057,0.1808,3023.6,3022.6,4.23670714]
[1767338979258,0.0049604,3023.7,3022.6,4.23670714]
[1767338983961,0.1439924,3023.8,3022.6,4.23670714]
[1767338984556,0.00388771,3024.3,3022.6,4.23670714]
[1767338984864,0.0049604,3023.8,3022.6,4.23670714]
[1767338985462,0.1439924,3024.2,3022.6,4.23670714]
[1767338986363,0.0049604,3023.7,3022.6,4.23670714]
[1767338986569,0.1439924,3024.2,3022.6,4.23670714]
[1767338987565,0.00327909,3023.7,3022.6,4.23670714]
[1767338987759,0.1439924,3024.2,3022.6,4.23670714]
[1767338996965,5.496,3027.1,3022.7,3.312]
[1767338996966,0.1353249,3025.6,3022.7,3.312]
[1767338997172,1.7,3027.1,3023.9,0.13215548]
[1767338997173,0.16541,3026.8,3023.9,0.13215548]
[1767338997369,0.16541,3026.8,3024.0,4.99015548]
[1767338997669,0.16541,3026.8,3024.0,4.44274268]
[1767338997971,0.16776514,3026.8,3024.1,4.858]
[1767338998171,0.16776514,3026.8,3024.1,4.8619249]
[1767338998371,0.16776514,3026.8,3024.2,4.32922472]
[1767338999073,0.1353249,3026.7,3024.2,4.32922472]
[1767339000869,0.1353249,3026.7,3024.3,4.858]
[1767339001065,0.1353249,3026.7,3024.4,0.13376636]
[1767339001271,0.1353249,3026.7,3024.4,4.3968351]
[1767339001967,0.1353249,3026.7,3024.4,4.26306874]
[1767339002367,0.1353249,3026.7,3024.5,4.857]
[1767339005274,0.1353249,3026.7,3024.1,0.1694849]
[1767339005476,0.1353249,3026.7,3024.6,4.856]
[1767339005674,0.1353249,3026.7,3025.3,0.0049604]
[1767339007076,8.3,3026.6,3025.3,0.0049604]
[1767339007276,0.1353249,3026.5,3025.3,0.0049604]
[1767339012582,0.1353249,3026.4,3025.3,0.0049604]
[1767339018695,0.1353249,3026.4,3024.1,0.1694849]
[1767339018987,0.1353249,3026.4,3024.2,8.7131724]
[1767339019693,0.0049604,3025.6,3025.0,0.0049604]
[1767339035107,0.0049604,3025.6,3025.2,0.7638738]
[1767339036605,0.0049604,3025.6,3025.1,0.7638738]
[1767339036796,0.1353249,3025.9,3025.1,0.7638738]
[1767339051821,0.1353249,3025.9,3025.0,0.0049604]
[1767339052022,0.1353249,3025.9,3025.1,0.7638738]
[1767339067732,0.1353249,3025.9,3025.0,0.0049604]
[1767339072437,0.1353249,3025.9,3024.1,0.0039249]
[1767339072438,0.14025583,3025.6,3024.1,0.0039249]
[1767339072639,0.14025583,3025.4,3024.1,0.0039249]
[1767339072837,5.0858738,3025.9,3024.1,0.0039249]
[1767339072838,0.14025583,3025.2,3024.1,0.0039249]
[1767339073540,0.14521623,3025.0,3024.3,0.0049604]
[1767339078346,0.14521623,3025.0,3024.1,0.0039249]
[1767339079348,0.14521623,3025.0,3024.2,0.0049604]
[1767339082045,0.14521623,3025.0,3024.2,4e-07]
[1767339082250,0.14521623,3025.0,3024.1,0.0039249]
[1767339083247,0.14521623,3025.0,3024.2,0.0049604]
[1767339085649,0.14521623,3025.0,3024.1,0.0039249]
[1767339086251,0.31072623,3025.0,3022.8,0.14065434]
[1767339086457,0.13461964,3024.9,3023.7,0.0049604]
[1767339087452,0.13461964,3024.9,3023.7,0.00732543]
[1767339088558,0.13461964,3024.9,3023.7,0.77171189]
[1767339088958,0.13461964,3024.9,3023.7,0.00732543]
[1767339089159,0.13461964,3024.9,3023.8,0.76438646]
[1767339090860,0.13461964,3024.8,3023.8,0.76438646]
[1767339091054,0.13461964,3024.8,3023.7,0.00732543]
[1767339091260,0.13461964,3024.7,3023.7,0.00732543]
[1767339091460,0.30014964,3024.7,3023.7,0.00732543]
[1767339091753,0.0049604,3025.0,3023.7,0.00732543]
[1767339091754,0.30015964,3024.6,3023.7,0.00732543]
[1767339091958,0.13461964,3024.5,3023.7,0.00732543]
[1767339093664,0.13461964,3024.4,3023.2,0.76438646]
[1767339093856,0.8990061,3024.2,3022.9,0.76438646]
[1767339094055,0.00411979,3024.6,3022.9,0.76438646]
[1767339094056,0.13461964,3024.1,3022.9,0.76438646]
[1767339094253,0.13461964,3024.1,3023.2,0.76438646]
[1767339094558,0.13461964,3024.0,3022.9,0.76438646]
[1767339094756,0.13958004,3023.8,3023.3,0.76438646]
[1767339094952,0.16556,3024.1,3023.3,0.76438646]
[1767339095964,0.0049604,3024.0,3023.3,0.76438646]
[1767339099261,0.13958004,3024.0,3022.9,0.00244386]
[1767339099862,0.13958004,3024.0,3023.0,0.76438646]
[1767339100267,0.0049604,3024.0,3023.4,0.76438646]
[1767339102165,0.0049604,3024.0,3023.2,0.0049604]
[1767339102467,0.0049604,3024.0,3023.4,0.76438646]
[1767339104467,0.0049604,3024.0,3023.2,0.0049604]
[1767339105071,0.0049604,3024.0,3023.3,0.76438646]
[1767339105272,0.0049604,3024.0,3023.5,0.76438646]
[1767339108277,0.00411979,3024.6,3023.5,0.76438646]
[1767339108575,8.3,3024.5,3023.5,0.76438646]
[1767339109077,0.0049604,3024.3,3023.5,0.76438646]
[1767339109276,0.0049604,3024.3,3023.2,0.90573029]
[1767339112477,0.65,3024.2,3022.9,0.00244386]
[1767339112677,0.76438646,3023.2,3021.9,0.13638343]
[1767339112882,5.26198646,3023.5,3022.2,0.13638343]
[1767339113080,5.26198646,3023.5,3022.1,0.76438646]
[1767339113081,0.1656,3023.5,3022.7,0.76438646]
[1767339113277,0.1656,3023.5,3023.0,0.90076989]
[1767339113578,0.0049604,3023.6,3023.1,0.13638343]
[1767339113779,0.0049604,3023.6,3023.2,0.90076989]
[1767339114081,0.0049604,3023.6,3023.3,0.13638343]
[1767339114481,0.0049604,3023.6,3023.0,0.00307636]
[1767339123889,0.0049604,3023.6,3023.0,0.14151349]
[1767339124892,0.16557,3024.0,3023.3,0.13843713]
[1767339125885,0.1705304,3024.0,3023.3,0.13843713]
[1767339127690,0.13720676,3025.4,3023.4,0.76438646]
[1767339127894,0.16965979,3024.6,3023.5,0.13843713]
[1767339128287,0.92993646,3024.4,3023.1,0.13843713]
[1767339128693,0.0049604,3024.1,3023.1,0.13843713]
[1767339129592,0.0049604,3024.1,3023.2,0.90282359]
[1767339130090,0.0049604,3024.1,3023.3,0.13843713]
[1767339130590,0.0049604,3024.1,3023.4,0.76438646]
[1767339132596,0.0049604,3024.1,3023.3,0.13843713]
[1767339132793,0.0049604,3024.1,3023.3,0.90282359]
[1767339133495,0.0049604,3024.1,3023.4,0.13843713]
[1767339135498,0.16555,3024.4,3023.6,0.13843713]
[1767339136795,0.0049604,3024.3,3023.6,0.13843713]
[1767339136995,0.0049604,3024.3,3023.1,0.13843713]
[1767339139896,0.1705104,3024.3,3023.1,0.13843713]
[1767339141697,0.16556,3024.2,3023.1,0.13843713]
[1767339141902,0.16556,3024.2,3023.0,0.00307636]
[1767339143107,0.0049604,3024.3,3023.0,0.00307636]
[1767339143308,0.16557,3023.9,3023.0,0.00307636]
[1767339145216,0.16558,3023.8,3023.0,0.00307636]
[1767339150319,0.16558,3023.8,3023.0,0.136734]
[1767339155819,0.16558,3023.8,3023.0,0.00307636]
[1767339167131,0.16558,3023.8,3023.0,0.136734]
[1767339168234,0.16558,3023.8,3023.0,0.00307636]
[1767339187649,0.16558,3023.8,3022.9,0.0049604]
[1767339187650,0.16558,3023.7,3022.9,0.0049604]
[1767339188646,0.16558,3023.7,3022.9,0.0090118]
[1767339189151,0.13718399,3023.8,3022.9,0.0090118]
[1767339189354,0.13718399,3023.8,3022.2,0.1389855]
[1767339189355,0.16559,3023.6,3022.2,0.1389855]
[1767339190257,0.16559,3023.6,3022.6,0.0049604]
[1767339199243,0.30277399,3023.6,3022.6,0.0049604]
[1767339200250,0.13718399,3023.6,3022.6,0.0049604]
[1767339200553,0.13718399,3023.6,3022.2,0.14155071]
[1767339200554,0.76525834,3023.2,3022.2,0.00256521]
[1767339200753,0.90244233,3023.2,3022.2,0.00256521]
[1767339201346,0.16562,3023.1,3022.2,0.00256521]
[1767339201552,0.16562,3023.1,3022.3,0.0049604]
[1767339202749,0.76525834,3023.0,3022.3,0.0049604]
[1767339203047,1.06806233,3023.0,3021.5,0.76525834]
[1767339203451,0.90244233,3022.8,3021.4,0.1389855]
[1767339203645,0.76525834,3022.6,3021.0,0.1389855]
[1767339203843,0.76525834,3022.6,3021.2,0.76525834]
[1767339204046,0.77021874,3022.2,3021.6,0.0049604]
[1767339204240,0.00751677,3022.2,3021.3,0.76525834]
[1767339204447,0.00751677,3022.2,3021.3,0.90424384]
[1767339205155,0.00751677,3022.2,3021.4,0.00330692]
[1767339205353,0.00751677,3022.2,3021.4,0.14973654]
[1767339205652,0.00751677,3022.2,3021.5,0.91168796]
[1767339205950,0.132772,3023.2,3021.7,0.91168796]
[1767339206257,0.298382,3023.2,3021.9,0.76525834]
[1767339206554,1.06364034,3023.2,3021.9,0.76525834]
[1767339206854,0.0049604,3022.9,3021.9,0.76525834]
[1767339207249,0.0049604,3022.9,3021.9,0.90859392]
[1767339207455,0.0049604,3022.9,3022.1,0.90859392]
[1767339207853,0.0049604,3022.9,3022.1,0.14333558]